bitfinex-derivatives/quotes_ETHF0:USTF0_20250105
["timestamp","ask_amount","ask_price","bid_price","bid_amount"]
[1736060341964,0.99596658,3640.7,3640.6,4.46751736]
[1736060342366,0.99596658,3640.7,3640.6,0.4363]
[1736060347370,2.43636329,3640.8,3640.6,0.4363]
[1736060347864,2.16163329,3640.8,3640.6,0.4363]
[1736060348065,0.27474,3640.7,3640.6,0.4363]
[1736060348375,0.27474,3640.6,3640.5,6.45504102]
[1736060348578,0.71704,3640.6,3640.5,6.45504102]
[1736060349776,0.71704,3640.6,3640.5,10.48567346]
[1736060352775,0.27477,3640.3,3640.1,6.45504102]
[1736060352974,0.8445,3640.2,3640.1,6.45504102]
[1736060354076,1.11927,3640.2,3640.1,6.45504102]
[1736060354275,1.56877,3640.2,3640.1,6.45504102]
[1736060354478,1.56877,3640.2,3640.1,10.48789683]
[1736060356080,1.56877,3640.2,3640.1,4.30824272]
[1736060357682,2.62377,3640.2,3640.1,4.30824272]
[1736060358985,4.78479657,3640.2,3640.0,4.30824272]
[1736060360882,4.51002657,3640.2,3640.0,4.30824272]
[1736060361087,4.78479657,3640.2,3640.0,4.30824272]
[1736060361382,4.33529657,3640.2,3640.0,4.30824272]
[1736060361780,4.06052657,3640.2,3640.0,4.30824272]
[1736060362079,1.8995,3640.2,3640.1,4.30824272]
[1736060363385,2.17427,3640.2,3640.1,4.30824272]
[1736060364882,2.17427,3640.2,3640.0,4.30824272]
[1736060365085,1.8995,3640.2,3640.0,4.30824272]
[1736060365485,2.17428,3640.2,3640.0,4.30824272]
[1736060365892,1.8995,3640.2,3640.0,4.30824272]
[1736060366082,1.055,3640.2,3640.0,4.30824272]
[1736060366887,1.32977,3640.2,3640.0,4.30824272]
[1736060367988,1.32977,3640.2,3640.1,4.30824272]
[1736060370185,1.32977,3640.2,3640.0,4.30824272]
[1736060370386,1.055,3640.2,3640.0,4.30824272]
[1736060371589,1.055,3640.2,3640.1,4.30824272]
[1736060372380,0.99596658,3640.3,3640.1,4.30824272]
[1736060372586,0.99596658,3640.3,3640.2,0.4322]
[1736060372781,0.99596658,3640.3,3640.2,0.8706]
[1736060374298,1.27073658,3640.3,3640.2,0.8706]
[1736060374485,1.27073658,3640.3,3640.2,5.17884272]
[1736060376193,1.27073658,3640.3,3640.2,0.8706]
[1736060377193,1.27073658,3640.3,3640.2,0.4384]
[1736060377393,0.27477,3640.2,3640.1,4.30824272]
[1736060377693,0.68517,3640.2,3640.1,4.30824272]
[1736060382002,0.4104,3640.2,3640.1,4.30824272]
[1736060383896,0.99596658,3640.3,3640.1,4.30824272]
[1736060384400,0.99596658,3640.3,3640.1,4.03067711]
[1736060384598,3.21602657,3640.4,3640.1,4.03067711]
[1736060384800,4.21199315,3640.4,3640.1,4.30545711]
[1736060385599,2.05096658,3640.4,3640.2,4.30622321]
[1736060385901,0.99596658,3640.3,3640.2,4.30622321]
[1736060386100,1.27073658,3640.3,3640.2,4.30622321]
[1736060389400,0.99596658,3640.3,3640.2,4.30622321]
[1736060389705,1.27073658,3640.3,3640.2,4.30622321]
[1736060390034,3.43176315,3640.3,3640.2,4.30622321]
[1736060392304,0.99596658,3640.3,3640.2,4.30622321]
[1736060395511,0.99596658,3640.3,3640.2,10.48940868]
[1736060396710,1.67683658,3640.3,3640.2,10.48940868]
[1736060398615,2.08914766,3640.3,3640.2,10.48940868]
[1736060406926,0.27478,3640.1,3640.0,4.31343622]
[1736060407120,1.27074658,3640.1,3640.0,4.31343622]
[1736060408325,1.68305766,3640.1,3640.0,4.31343622]
[1736060409420,1.40827766,3640.1,3640.0,4.31343622]
[1736060409622,1.40827766,3640.1,3640.0,4.03642033]
[1736060409623,4.92739445,3640.1,3640.0,4.03642033]
[1736060409928,5.37789445,3640.1,3640.0,4.03642033]
[1736060411374,5.10311445,3640.1,3640.0,4.03642033]
[1736060411627,4.65261445,3640.1,3640.0,4.03642033]
[1736060412225,0.99596658,3640.1,3640.0,10.49146135]
[1736060413627,3.15852406,3640.1,3640.0,4.03642033]
[1736060414127,0.81075748,3640.1,3640.0,4.31121033]
[1736060414323,0.81729427,3640.2,3640.1,0.27478]
[1736060414627,4.3263878,3640.5,3640.4,0.27476]
[1736060414841,4.3263878,3640.5,3640.4,3.48256]
[1736060415029,0.99596658,3640.7,3640.4,3.2078]
[1736060415224,0.99596658,3640.7,3640.5,0.27475]
[1736060416526,0.99596658,3640.7,3640.5,8.89056317]
[1736060416722,0.99596658,3640.7,3640.6,4.03642033]
[1736060417619,0.99596658,3640.7,3640.6,4.46762033]
[1736060419328,0.99596658,3640.7,3640.6,11.20159672]
[1736060421029,0.99596658,3640.7,3640.6,4.74236033]
[1736060421426,0.99596658,3640.7,3640.6,4.46762033]
[1736060423824,0.99596658,3640.7,3640.6,10.92392492]
[1736060424730,0.99596658,3640.7,3640.6,11.19866492]
[1736060425132,0.99596658,3640.7,3640.6,4.74236033]
[1736060426537,0.99596658,3640.7,3640.6,11.19866492]
[1736060427535,0.99596658,3640.7,3640.6,4.74236033]
[1736060427925,0.99596658,3640.9,3640.6,4.46762033]
[1736060428328,0.99596658,3640.9,3640.8,0.27473]
[1736060428732,0.99596658,3640.9,3640.8,4.57614217]
[1736060435338,0.99596658,3640.9,3640.8,4.30141217]
[1736060436038,0.99596658,3640.9,3640.8,0.27473]
[1736060440436,0.99596658,3640.9,3640.7,4.57614217]
[1736060440836,0.27473,3640.8,3640.7,4.30141217]
[1736060442136,0.27473,3640.8,3640.5,4.30141217]
[1736060442337,0.99596658,3640.6,3640.5,4.30141217]
[1736060442738,1.40486658,3640.6,3640.3,6.45630459]
[1736060442939,1.27072658,3640.4,3640.3,6.45630459]
[1736060443143,4.47852658,3640.4,3640.3,6.45630459]
[1736060443545,4.47852658,3640.4,3640.3,5.78060459]
[1736060443742,4.47852658,3640.4,3640.3,5.10490459]
[1736060444845,4.20376658,3640.4,3639.5,0.27482]
[1736060445046,0.99596658,3639.7,3639.5,0.27482]
[1736060445340,0.99596658,3639.7,3639.4,5.04976658]
[1736060445547,0.99596658,3639.5,3639.3,8.61581317]
[1736060445743,1.27079658,3639.5,3639.3,8.61581317]
[1736060445943,0.4433,3639.4,3639.0,8.61581317]
[1736060446138,0.99596658,3639.2,3639.0,8.61581317]
[1736060446536,0.99596658,3639.2,3639.0,8.89067317]
[1736060447743,0.99596658,3639.2,3639.0,0.27486]
[1736060448843,0.99596658,3639.2,3638.9,1.43776658]
[1736060449145,0.99596658,3639.2,3638.9,1.71263658]
[1736060451250,0.99596658,3639.2,3638.9,1.43776658]
[1736060457850,0.99596658,3639.2,3638.9,1.71263658]
[1736060458150,0.99596658,3639.2,3638.9,1.43776658]
[1736060458842,0.27484,3639.3,3638.9,1.43776658]
[1736060458843,1.4983,3639.4,3639.1,1.27081658]
[1736060459045,1.055,3639.4,3639.3,0.99596658]
[1736060459459,1.27078658,3639.6,3639.3,0.99596658]
[1736060459649,2.05096658,3639.6,3639.4,0.4172]
[1736060459954,2.05096658,3639.6,3639.5,0.4184]
[1736060460653,0.99596658,3639.6,3639.5,0.4184]
[1736060460848,1.27078658,3639.6,3639.5,0.4184]
[1736060461050,1.68638658,3639.6,3639.5,0.4184]
[1736060462558,1.41156658,3639.6,3639.5,0.4184]
[1736060463759,1.68638658,3639.6,3639.5,0.4184]
[1736060464954,1.41156658,3639.6,3639.5,0.4184]
[1736060465259,1.68638658,3639.6,3639.5,0.4184]
[1736060469861,1.27078658,3639.6,3639.5,0.4184]
[1736060470256,1.69128658,3639.6,3639.5,0.4184]
[1736060481075,1.69128658,3639.6,3639.2,0.42]
[1736060481280,0.27484,3639.3,3639.2,0.42]
[1736060490107,0.99596658,3639.4,3639.0,0.8898]
[1736060490312,0.27486,3639.1,3639.0,0.8898]
[1736060491809,0.27486,3639.1,3639.0,21.61940845]
[1736060497007,1.44186658,3639.2,3639.0,21.61940845]
[1736060497008,1.71671658,3639.2,3639.0,21.61940845]
[1736060498303,1.71671658,3639.2,3639.1,12.65374493]
[1736060500015,3.50205336,3639.3,3639.1,12.65374493]
[1736060500409,3.50205336,3639.3,3639.2,0.4245]
[1736060500915,0.27485,3639.3,3639.2,4.46243176]
[1736060506520,5.55600994,3639.4,3639.2,13.07824493]
[1736060507514,5.55600994,3639.4,3639.3,4.03793176]
[1736060508023,5.28116994,3639.4,3639.3,4.03793176]
[1736060509026,5.69356382,3639.4,3639.3,4.03793176]
[1736060509225,5.96839382,3639.4,3639.3,4.03793176]
[1736060510826,5.69356382,3639.4,3639.3,4.03793176]
[1736060514323,5.69356382,3639.4,3639.3,10.51938792]
[1736060514324,2.46636046,3639.4,3639.3,10.51938792]
[1736060515730,2.05396658,3639.4,3639.3,4.03793176]
[1736060517027,2.46636046,3639.4,3639.3,4.03793176]
[1736060517326,2.74119046,3639.4,3639.3,4.03793176]
[1736060518118,2.74119046,3639.4,3639.3,10.51985521]
[1736060521133,2.74119046,3639.4,3639.3,4.03793176]
[1736060521134,7.06757826,3639.4,3639.3,4.03793176]
[1736060522635,0.27484,3639.3,3639.2,6.48192345]
[1736060522831,0.69644,3639.3,3639.2,6.48192345]
[1736060524428,5.1621071,3639.3,3639.2,4.03907172]
[1736060524636,5.4369471,3639.3,3639.2,4.03907172]
[1736060525740,0.27486,3639.1,3639.0,6.92452345]
[1736060526043,1.27082658,3639.1,3639.0,6.92452345]
[1736060526534,0.99596658,3639.1,3639.0,6.92452345]
[1736060526731,1.27082658,3639.1,3639.0,6.92452345]
[1736060527132,4.92881458,3639.1,3639.0,10.96319275]
[1736060528235,4.65395458,3639.1,3639.0,10.96319275]
[1736060528733,4.2415607,3639.1,3639.0,10.96319275]
[1736060529132,4.5164207,3639.1,3639.0,10.96319275]
[1736060530132,4.2415607,3639.1,3639.0,10.96319275]
[1736060531340,1.27082658,3639.1,3639.0,10.96319275]
[1736060532240,0.99596658,3639.1,3639.0,10.96319275]
[1736060532533,4.2415607,3639.1,3639.0,10.96319275]
[1736060533332,4.5164207,3639.1,3639.0,10.96319275]
[1736060533743,1.27082658,3639.1,3639.0,10.96319275]
[1736060542041,3.24559412,3639.2,3639.0,10.96319275]
[1736060542232,3.24559412,3639.2,3639.1,0.68606]
[1736060542233,2.56949412,3639.2,3639.1,0.68606]
[1736060543140,2.56949412,3639.2,3639.1,0.4112]
[1736060543760,0.99596658,3639.3,3639.1,12.55669858]
[1736060543937,0.27485,3639.2,3639.1,12.55669858]
[1736060545145,2.43748066,3639.2,3639.1,10.92962127]
[1736060545343,2.43748066,3639.2,3639.1,10.51842127]
[1736060545543,3.28328066,3639.2,3639.1,10.51842127]
[1736060546342,1.5330738,3639.2,3639.1,4.0386693]
[1736060547443,1.12065,3639.2,3639.1,4.0386693]
[1736060549046,0.27486,3639.1,3639.0,6.47975197]
[1736060549248,1.27082658,3639.1,3639.0,6.47975197]
[1736060550654,1.27082658,3639.1,3639.0,10.53495326]
[1736060551744,3.43372596,3639.1,3639.0,10.53495326]
[1736060551949,3.15886596,3639.1,3639.0,10.53495326]
[1736060552949,4.21386596,3639.1,3639.0,4.05520129]
[1736060554351,4.48872596,3639.1,3639.0,4.05520129]
[1736060555946,2.32582658,3639.1,3639.0,10.53573246]
[1736060556451,2.05096658,3639.1,3639.0,10.53573246]
[1736060556851,2.32582658,3639.1,3639.0,10.53573246]
[1736060557350,0.99596658,3639.1,3639.0,10.53573246]
[1736060557555,1.055,3639.2,3639.0,4.05520129]
[1736060557738,0.41242158,3639.3,3639.2,0.27485]
[1736060557946,0.41242158,3639.3,3639.2,4.47861658]
[1736060558259,4.32811322,3639.4,3639.3,0.27484]
[1736060558548,4.32811322,3639.4,3639.3,1.14074]
[1736060558850,0.41381322,3639.4,3639.3,1.14074]
[1736060559049,5.39668994,3639.6,3639.5,0.27483]
[1736060559347,5.39668994,3639.6,3639.5,1.27079658]
[1736060559541,2.16248443,3639.7,3639.6,0.27482]
[1736060559751,2.16248443,3639.7,3639.6,3.48262]
[1736060560847,2.05096658,3640.0,3639.6,15.36820847]
[1736060561045,2.05096658,3640.0,3639.7,0.27481]
[1736060561847,2.05096658,3640.0,3639.8,0.2748]
[1736060562048,2.05096658,3640.0,3639.7,0.69541]
[1736060562347,1.055,3640.0,3639.8,10.52422145]
[1736060562553,2.05096658,3640.0,3639.9,0.4355]
[1736060563853,2.05096658,3640.0,3639.9,10.95972145]
[1736060565549,2.05096658,3640.0,3639.9,11.21427728]
[1736060565753,2.05096658,3640.0,3639.9,4.74525712]
[1736060566552,2.05096658,3640.0,3639.9,4.30975712]
[1736060567051,2.49546658,3640.0,3639.9,4.30975712]
[1736060567656,2.49546658,3640.0,3639.8,4.30975712]
[1736060567853,0.4252,3639.9,3639.8,4.30975712]
[1736060571364,0.4252,3639.9,3639.7,4.73035712]
[1736060573370,0.99596658,3639.8,3639.7,4.30975712]
[1736060573571,1.27076658,3639.8,3639.7,4.30975712]
[1736060575472,0.99596658,3639.8,3639.5,4.30975712]
[1736060575768,0.72062,3639.7,3639.5,4.30975712]
[1736060577372,0.72062,3639.7,3639.4,4.30975712]
[1736060577573,0.99596658,3639.6,3639.4,4.30975712]
[1736060577765,0.4278,3639.5,3639.4,4.30975712]
[1736060578071,0.8657,3639.5,3639.4,4.30975712]
[1736060578576,0.8657,3639.5,3639.3,4.30975712]
[1736060578869,0.99596658,3639.4,3639.3,4.30975712]
[1736060581968,0.99596658,3639.4,3639.2,4.58460712]
[1736060582775,0.8657,3639.5,3639.2,4.58460712]
[1736060583286,0.8657,3639.5,3639.3,0.99596658]
[1736060584467,0.8657,3639.5,3639.3,5.3057237]
[1736060586579,1.14053,3639.5,3639.3,4.30975712]
[1736060588075,0.8657,3639.5,3639.3,4.30975712]
[1736060588777,0.8657,3639.5,3639.3,4.58459712]
[1736060589076,0.8657,3639.5,3639.4,0.27483]
[1736060589278,0.8657,3639.5,3639.4,0.68613]
[1736060590276,0.8657,3639.5,3639.4,4.99588712]
[1736060590776,0.8657,3639.5,3639.4,4.72105712]
[1736060591175,0.8657,3639.5,3639.4,4.30975712]
[1736060591878,0.8657,3639.5,3639.3,0.27484]
[1736060591879,0.8657,3639.5,3639.3,4.58459712]
[1736060592280,0.8657,3639.5,3639.3,4.30975712]
[1736060596326,0.8657,3639.5,3639.3,4.58459712]
[1736060597679,0.8657,3639.5,3639.4,4.30975712]
[1736060598278,0.8657,3639.5,3639.4,4.58458712]
[1736060598779,0.8657,3639.5,3639.4,4.30975712]
[1736060599079,0.8657,3639.5,3639.4,4.16637053]
[1736060606274,1.14053,3639.5,3639.4,4.16637053]
[1736060607789,3.30301443,3639.5,3639.4,4.31684966]
[1736060613786,3.30301443,3639.5,3639.4,4.17126239]
[1736060617388,3.02818443,3639.5,3639.4,4.17126239]
[1736060619402,3.02818443,3639.5,3639.4,10.64028255]
[1736060619403,0.8657,3639.5,3639.4,10.64028255]
[1736060620791,4.10684795,3639.5,3639.4,10.64028255]
[1736060621989,4.10684795,3639.5,3639.4,4.17126239]
[1736060621990,0.8657,3639.5,3639.4,4.17126239]
[1736060622180,0.4379,3639.5,3639.4,4.17126239]
[1736060622388,0.4379,3639.5,3639.4,4.59016239]
[1736060624490,0.4379,3639.5,3639.4,4.17126239]
[1736060625391,0.4379,3639.5,3639.4,12.79662261]
[1736060626595,3.67904795,3639.5,3639.4,4.17126239]
[1736060628090,4.09142849,3639.5,3639.4,4.17126239]
[1736060629394,2.60173455,3639.5,3639.4,12.52278289]
[1736060630790,2.60173455,3639.5,3639.4,21.1685203]
[1736060635297,2.87656455,3639.5,3639.4,21.1685203]
[1736060637199,1.12512658,3639.5,3639.4,10.65610496]
[1736060638605,0.71273,3639.5,3639.4,10.65610496]
[1736060640402,0.27483,3639.4,3639.3,4.32367326]
[1736060640696,1.27079658,3639.4,3639.3,4.32367326]
[1736060641695,6.01028242,3639.4,3639.3,4.32367326]
[1736060643295,1.68319316,3639.4,3639.3,4.32367326]
[1736060643495,1.68319316,3639.4,3639.3,3.64777326]
[1736060643704,1.68319316,3639.4,3639.3,1.76177326]
[1736060645100,0.27489,3638.7,3638.6,6.48484257]
[1736060645301,1.27085658,3638.7,3638.6,6.48484257]
[1736060645703,2.11765658,3638.7,3638.6,6.48484257]
[1736060646699,2.54195658,3638.7,3638.6,6.48484257]
[1736060646895,4.70379556,3638.7,3638.5,6.89364257]
[1736060648596,4.70379556,3638.7,3638.5,0.4088]
[1736060648991,0.27489,3638.6,3638.5,0.4088]
[1736060649203,4.42890556,3638.7,3638.5,0.4088]
[1736060649403,4.70379556,3638.7,3638.5,0.4088]
[1736060649598,2.54195658,3638.7,3638.5,0.4088]
[1736060649800,2.26706658,3638.7,3638.5,0.4088]
[1736060650008,0.27489,3638.6,3638.5,0.4088]
[1736060684232,2.43672898,3638.6,3638.5,0.4088]
[1736060684431,2.16183898,3638.6,3638.5,0.4088]
[1736060684621,2.16183898,3638.6,3638.5,6.40476658]
[1736060684931,2.74275847,3638.7,3638.6,0.27489]
[1736060685134,2.74275847,3638.7,3638.6,3.48269]
[1736060685532,4.32367796,3638.9,3638.6,3.2078]
[1736060685834,2.74275847,3639.0,3638.9,0.27487]
[1736060687542,1.27080658,3639.4,3639.0,0.27486]
[1736060687734,1.2729,3639.6,3639.0,0.27486]
[1736060687735,0.8517,3639.6,3639.3,0.99596658]
[1736060688042,4.32367796,3639.8,3639.5,0.99596658]
[1736060688226,4.59848796,3639.8,3639.6,0.8373]
[1736060689035,4.32367796,3639.8,3639.6,11.42031518]
[1736060689234,1.43436658,3639.9,3639.6,11.42031518]
[1736060689536,0.2748,3639.8,3639.6,11.42031518]
[1736060689727,1.70916658,3639.9,3639.6,11.42031518]
[1736060690534,1.70916658,3639.9,3639.6,0.8373]
[1736060690737,0.2748,3639.8,3639.6,0.8373]
[1736060691033,1.70916658,3639.9,3639.6,0.8373]
[1736060691231,0.4391,3640.0,3639.7,0.99596658]
[1736060691468,0.4391,3640.0,3639.8,0.2748]
[1736060691628,0.99596658,3640.1,3639.8,0.2748]
[1736060691937,4.49740469,3640.5,3639.9,0.99596658]
[1736060692137,4.32367796,3640.5,3640.4,0.27476]
[1736060692638,4.32367796,3640.5,3640.4,1.14136]
[1736060693438,4.32367796,3640.5,3640.4,0.8666]
[1736060693643,1.27069658,3640.8,3640.4,0.8666]
[1736060694139,0.99596658,3640.8,3640.4,1.14135]
[1736060696238,0.99596658,3640.8,3640.5,0.27475]
[1736060696442,0.99596658,3640.8,3640.4,0.8666]
[1736060697237,0.99596658,3640.8,3640.5,1.27071658]
[1736060697937,0.99596658,3640.8,3640.5,0.99596658]
[1736060698937,0.99596658,3640.8,3640.5,1.27071658]
[1736060700143,0.99596658,3640.8,3640.5,0.99596658]
[1736060700743,0.99596658,3640.6,3640.4,0.4471]
[1736060700943,0.4281,3640.5,3640.4,0.4471]
[1736060701136,0.8482,3640.5,3640.4,0.72186]
[1736060701342,0.8482,3640.5,3640.4,0.4471]
[1736060703247,0.8482,3640.5,3640.3,0.99596658]
[1736060704148,0.8482,3640.5,3640.4,0.69556]
[1736060704746,0.4084,3640.9,3640.7,0.27473]
[1736060705038,0.4084,3640.9,3640.8,0.27473]
[1736060705438,0.4084,3640.9,3640.7,1.27069658]
[1736060706252,0.4084,3640.9,3640.8,0.27473]
[1736060707251,0.4084,3640.9,3640.7,1.27070658]
[1736060710852,0.4084,3640.9,3640.8,0.27473]
[1736060711247,0.4084,3640.9,3640.7,1.27069658]
[1736060711650,0.4084,3640.9,3640.8,0.27473]
[1736060713248,0.4084,3640.9,3640.7,1.27070658]
[1736060713754,0.4084,3640.9,3640.8,0.27473]
[1736060719552,0.99596658,3641.2,3640.7,0.99596658]
[1736060719754,2.52903658,3641.6,3641.2,0.27469]
[1736060719953,2.25436658,3641.6,3641.1,0.99596658]
[1736060720159,2.25436658,3641.6,3641.3,0.27469]
[1736060720777,2.25436658,3641.6,3641.0,3.2078]
[1736060720778,0.99596658,3641.4,3641.0,3.2078]
[1736060720961,0.99596658,3641.1,3641.0,0.27471]
[1736060721256,2.52903658,3641.6,3641.2,0.27469]
[1736060721461,2.52903658,3641.6,3641.2,1.27065658]
[1736060722058,2.25436658,3641.6,3641.2,0.99596658]
[1736060722257,2.25436658,3641.6,3641.3,0.27469]
[1736060722657,2.52903658,3641.6,3641.2,1.27066658]
[1736060722860,2.52903658,3641.6,3641.0,3.2078]
[1736060722861,0.99596658,3641.4,3641.0,4.20376658]
[1736060723065,1.27064658,3641.4,3641.0,4.47847658]
[1736060723465,1.27064658,3641.4,3641.0,3.48251]
[1736060723667,0.99596658,3641.2,3641.0,3.2078]
[1736060723867,0.4129,3641.1,3641.0,3.48251]
[1736060724567,0.4129,3641.1,3641.0,3.2078]
[1736060724766,0.4129,3641.1,3641.0,3.48251]
[1736060724967,0.4129,3641.1,3641.0,0.27471]
[1736060726375,0.4129,3641.1,3640.8,1.27068658]
[1736060726648,0.8484,3641.0,3640.8,1.27068658]
[1736060727172,0.8484,3641.0,3640.8,0.99596658]
[1736060727390,0.8484,3641.0,3640.9,0.27472]
[1736060737284,0.8484,3641.0,3640.9,0.71362]
[1736060737480,0.8484,3641.0,3640.8,1.27069658]
[1736060737883,0.8484,3641.0,3640.9,4.16863574]
[1736060739288,0.8484,3641.0,3640.9,10.9162325]
[1736060740189,0.8484,3641.0,3640.9,10.6415125]
[1736060740688,0.8484,3641.0,3640.9,4.16863574]
[1736060741882,0.8484,3641.0,3640.8,6.47287676]
[1736060742087,0.8484,3641.0,3640.8,6.74760676]
[1736060744084,0.8484,3641.0,3640.8,6.47287676]
[1736060744984,0.8484,3641.0,3640.8,6.74760676]
[1736060745216,0.8484,3641.0,3640.8,6.47287676]
[1736060745584,0.8484,3641.0,3640.9,4.171807]
[1736060749493,1.12311,3641.0,3640.9,4.171807]
[1736060750494,4.36524709,3641.0,3640.9,10.64468376]
[1736060750691,4.09053709,3641.0,3640.9,10.64468376]
[1736060751996,0.8484,3641.0,3640.9,10.64468376]
[1736060754792,4.09053709,3641.0,3640.9,10.64468376]
[1736060755982,1.12311,3641.0,3640.9,10.64468376]
[1736060756390,2.11907658,3641.0,3640.9,10.64468376]
[1736060756887,1.12311,3641.0,3640.9,10.64468376]
[1736060757091,2.11907658,3641.0,3640.9,10.64468376]
[1736060757285,0.27473,3640.8,3640.7,6.47287676]
[1736060757591,1.27069658,3640.8,3640.7,6.47287676]
[1736060759188,1.27069658,3640.8,3640.5,8.63050235]
[1736060759189,5.7318779,3640.8,3640.4,6.47287676]
[1736060759394,1.27071658,3640.5,3640.4,6.47287676]
[1736060759891,0.99596658,3640.5,3640.4,6.47287676]
[1736060760283,1.41186658,3640.5,3640.4,6.47287676]
[1736060760484,1.68661658,3640.5,3640.4,4.17493219]
[1736060760687,1.41186658,3640.5,3640.4,4.17493219]
[1736060762188,3.2418291,3640.7,3640.4,5.44565877]
[1736060762588,3.2418291,3640.7,3640.5,0.4235]
[1736060762990,0.99596658,3640.6,3640.5,0.4235]
[1736060763188,1.43456658,3640.6,3640.5,6.89637676]
[1736060764798,1.43456658,3640.6,3640.5,4.73884904]
[1736060764996,1.70930658,3640.6,3640.5,4.73884904]
[1736060765695,1.43456658,3640.6,3640.5,4.73884904]
[1736060766099,0.4386,3640.6,3640.5,4.73884904]
[1736060766298,3.5165691,3640.7,3640.5,4.73884904]
[1736060766499,0.27474,3640.7,3640.5,0.4235]
[1736060767297,3.2418291,3640.8,3640.6,0.27474]
[1736060767707,3.2418291,3640.8,3640.7,0.432]
[1736060768000,4.23779568,3640.9,3640.7,0.432]
[1736060768399,4.51252568,3640.9,3640.6,4.31534904]
[1736060768595,0.99596658,3640.7,3640.6,4.31534904]
[1736060768997,1.27070658,3640.7,3640.6,4.31534904]
[1736060769404,1.27070658,3640.7,3640.5,6.89637676]
[1736060769405,0.27474,3640.6,3640.5,6.89637676]
[1736060770798,0.27474,3640.6,3640.5,0.4235]
[1736060772297,0.27474,3640.6,3640.5,4.73899052]
[1736060773597,0.27474,3640.6,3640.5,0.4235]
[1736060774705,4.23779568,3640.7,3640.5,0.4235]
[1736060774906,4.51253568,3640.7,3640.5,0.4235]
[1736060776606,1.27070658,3640.7,3640.5,4.73899052]
[1736060779112,0.27474,3640.6,3640.5,4.73899052]
[1736060782213,1.27070658,3640.7,3640.5,4.73899052]
[1736060783212,0.27474,3640.6,3640.5,4.73899052]
[1736060786716,0.27474,3640.6,3640.5,0.4235]
[1736060788218,0.27474,3640.6,3640.5,4.73899052]
[1736060789353,4.23779568,3640.7,3640.5,4.73899052]
[1736060789516,4.51253568,3640.7,3640.5,4.73899052]
[1736060790620,4.23779568,3640.7,3640.5,4.73899052]
[1736060790939,0.27474,3640.6,3640.5,4.73899052]
[1736060791423,4.23779568,3640.7,3640.5,4.73899052]
[1736060791424,3.26633568,3640.7,3640.5,4.73899052]
[1736060791623,0.27474,3640.6,3640.5,4.73899052]
[1736060791829,0.27474,3640.6,3640.5,4.31549052]
[1736060793923,3.5165691,3640.6,3640.5,4.31549052]
[1736060795219,0.27475,3640.5,3640.4,4.31549052]
[1736060795419,1.70231658,3640.5,3640.4,4.31549052]
[1736060795621,2.14601658,3640.5,3640.4,4.31549052]
[1736060796335,5.3880677,3640.5,3640.4,4.31549052]
[1736060796625,5.1133177,3640.5,3640.4,4.31549052]
[1736060796925,5.3880677,3640.5,3640.4,4.31549052]
[1736060797826,2.14601658,3640.5,3640.4,4.31549052]
[1736060798325,1.87126658,3640.5,3640.4,4.31549052]
[1736060798819,5.1133177,3640.5,3640.4,4.31549052]
[1736060799224,5.3880677,3640.5,3640.4,4.31549052]
[1736060799424,5.1133177,3640.5,3640.4,4.31549052]
[1736060799827,5.1133177,3640.5,3640.4,4.17749353]
[1736060800625,5.3880677,3640.5,3640.4,4.17749353]
[1736060801422,5.5255928,3640.5,3640.4,4.17749353]
[1736060803129,5.8003428,3640.5,3640.4,4.17749353]
[1736060803428,2.55829168,3640.5,3640.4,10.65037029]
[1736060804930,6.46969454,3640.5,3640.4,4.32103598]
[1736060806419,6.88196964,3640.5,3640.4,4.32103598]
[1736060808922,6.00666964,3640.5,3640.4,4.32103598]
[1736060809632,6.00666964,3640.5,3640.3,5.18003598]
[1736060810573,5.59439454,3640.5,3640.4,4.32103598]
[1736060810730,1.27071658,3640.5,3640.4,4.32103598]
[1736060811532,1.68300155,3640.5,3640.4,4.32103598]
[1736060812424,2.13330155,3640.5,3640.4,4.32103598]
[1736060814736,0.27476,3640.4,3640.3,4.77033598]
[1736060816131,0.68704497,3640.4,3640.3,4.62738161]
[1736060817842,3.930837,3640.4,3640.3,4.62738161]
[1736060819132,0.68704497,3640.4,3640.3,4.62738161]
[1736060820627,0.27476,3640.4,3640.3,4.62738161]
[1736060821833,3.93070789,3640.4,3640.3,4.62738161]
[1736060823038,0.68704497,3640.4,3640.3,4.62738161]
[1736060823334,0.41228497,3640.4,3640.3,4.62738161]
[1736060823743,0.41228497,3640.4,3640.3,5.62334819]
[1736060823936,0.41228497,3640.4,3640.3,5.89811819]
[1736060824846,0.99596658,3640.6,3640.3,12.37099495]
[1736060825055,0.99596658,3640.6,3640.3,12.09622495]
[1736060825625,1.27071658,3640.6,3640.3,12.09622495]
[1736060825844,4.51437688,3640.6,3640.5,6.47287676]
[1736060826942,4.23962688,3640.6,3640.5,10.65095837]
[1736060827938,3.2436603,3640.6,3640.5,11.64692495]
[1736060828151,3.2436603,3640.6,3640.5,11.92167495]
[1736060829042,3.2436603,3640.6,3640.5,15.12947495]
[1736060830040,1.92478522,3641.0,3640.5,23.78242072]
[1736060830245,1.13928522,3641.0,3640.9,5.47445316]
[1736060830643,1.13928522,3641.0,3640.9,9.47848658]
[1736060831247,0.41221042,3641.1,3640.9,9.47848658]
[1736060831447,3.80298395,3641.2,3640.9,9.47848658]
[1736060831448,0.27466,3641.8,3641.3,0.27468]
[1736060831745,0.70275,3641.9,3641.6,0.99596658]
[1736060831941,0.4281,3641.9,3641.8,1.27061658]
[1736060832247,0.4281,3641.9,3641.8,0.99596658]
[1736060832752,0.4281,3641.9,3641.8,5.3019563]
[1736060834262,0.4281,3641.9,3641.7,4.30598972]
[1736060835347,0.4281,3641.9,3641.6,1.27063658]
[1736060835550,0.4281,3641.9,3641.6,0.99596658]
[1736060836254,0.70275,3641.9,3641.6,0.99596658]
[1736060836442,0.4281,3641.9,3641.5,4.30598972]
[1736060836647,1.27061658,3641.8,3641.5,4.30598972]
[1736060837650,0.27466,3641.7,3641.5,4.30598972]
[1736060837844,1.27062658,3641.8,3641.5,4.30598972]
[1736060838354,1.27062658,3641.8,3641.4,3.2078]
[1736060839351,1.27062658,3641.8,3641.4,3.48248]
[1736060839552,1.27062658,3641.8,3641.4,3.2078]
[1736060839744,1.27062658,3641.8,3641.4,3.48248]
[1736060840248,0.99596658,3641.8,3641.5,0.27468]
[1736060841245,0.99596658,3641.8,3641.5,1.27064658]
[1736060844055,0.99596658,3641.8,3641.5,0.99596658]
[1736060844255,0.4281,3641.9,3641.6,0.27467]
[1736060844456,0.4281,3641.9,3641.7,0.27466]
[1736060844759,0.4281,3641.9,3641.7,0.99596658]
[1736060845055,0.4281,3641.9,3641.7,1.27062658]
[1736060848450,0.4281,3641.9,3641.5,0.99596658]
[1736060848756,0.4281,3641.9,3641.6,0.27466]